fUSD/lending_fUSD_20250403
["ID","MTS","AMOUNT","RATE_DAILY","PERIOD"]
[357087467,1743705037718,-640.23032782,0.00019974,2]
[357087468,1743705037727,-184.58092382,0.0001999,2]
[357087469,1743705037735,-184.58092382,0.0001999,2]
[357087470,1743705037744,-591.20556994,0.00019998,2]
[357087471,1743705037753,-3467.21622105,0.00019998,2]
[357087472,1743705037764,-1606.12710976,0.00019998,2]
[357087473,1743705037783,-2403.78704119,0.00019998,2]
[357087474,1743705037797,-961.8123939,0.00019998,2]
[357087497,1743705039891,-1157.32285538,0.00019998,2]
[357087498,1743705040032,-9761.89126982,0.00019998,2]
[357087499,1743705040042,-7669.4685428,0.00019999,2]
[357087500,1743705040056,-29865.7714572,0.00019999,2]
[357087501,1743705040066,-263.42132899,0.0002,2]
[357087502,1743705040077,-296.57867101,0.0002,2]
[357087503,1743705040087,-181107.03456525,0.0002,2]
[357087504,1743705040096,-51949.84187369,0.0002,2]
[357087505,1743705040108,-375.7700106,0.0002,2]
[357087506,1743705040374,-327.64335458,0.0002,2]
[357087535,1743705043472,-1883.59137584,0.0002,2]
[357087536,1743705043491,-894.78695224,0.0002,2]
[357087552,1743705045894,-504.0,0.0002,2]
[357087553,1743705045904,-3914.76905243,0.0002,2]
[357087554,1743705046171,-817.25,0.0002,2]
[357087703,1743705074026,-173.19014926,0.00019399,2]
[357087704,1743705223186,-151.0099269,0.00019399,2]
[357087705,1743705223210,-22.18022236,0.00019399,2]
[357087706,1743705224211,-151.0099269,0.00019399,2]
[357087708,1743706027123,-175.14,0.00017164,2]
[357087709,1743706027144,-575.55030603,0.00019299,2]
[357087710,1743706027165,-676.32047198,0.00019399,2]
[357087711,1743706045103,-450.0,0.00019301,2]
[357087712,1743706045124,-1166.08937876,0.00019399,2]
[357087713,1743706045146,-151.0099269,0.00019399,2]
[357087714,1743706045168,-832.693,0.000196,2]
[357087715,1743706045189,-210.085,0.000196,2]
[357087716,1743706045214,-728.23,0.00019607,2]
[357087717,1743706045235,-250.0,0.0001965,2]
[357087718,1743706045255,-815.2309,0.000198,2]
[357087719,1743706045275,-150.0,0.00019899,2]
[357087720,1743706045296,-173.48784373,0.00019899,2]
[357087721,1743706045319,-399.0415,0.000199,2]
[357087722,1743706045340,-3993.63640779,0.000199,2]
[357087723,1743706082602,102660.0,0.00035019,30]
[357087724,1743706104471,1000.0,0.00035019,30]
[357087725,1743706117510,168.06,0.00013699,2]
[357087742,1743706231799,-237.026272,0.00019301,2]
[357087744,1743706231809,-151.0099269,0.00019399,2]
[357087745,1743706231819,-290.17419941,0.000198,2]
[357087746,1743706231828,-568.90752297,0.000199,2]
[357087747,1743706231840,-1351.97342967,0.000199,2]
[357087748,1743706231856,-1490.40943957,0.000199,2]
[357087749,1743706231865,-152.19608529,0.000199,2]
[357087750,1743706231877,-2.72399258,0.000199,2]
[357087751,1743706231887,-173.40552913,0.000199,2]
[357087752,1743706231896,-1032.61900299,0.000199,2]
[357087753,1743706231907,-752.76793986,0.000199,2]
[357087754,1743706231918,-294.33656805,0.000199,2]
[357087755,1743706231929,-475.22000005,0.000199,2]
[357087756,1743706231959,-3392.14875315,0.000199,2]
[357087757,1743706232026,-5026.918,0.000199,2]
[357087758,1743706232082,-452.95011032,0.000199,2]
[357087882,1743706237762,-27433.72939871,0.000199,2]
[357087883,1743706237773,-399.66831002,0.000199,2]
[357087884,1743706237782,-4611.26594228,0.000199,2]
[357087885,1743706237792,-2114.0,0.00019973,2]
[357087886,1743706237801,-500.0,0.00019973,2]
[357087887,1743706237811,-310.08367057,0.00019999,2]
[357087888,1743706237820,-666.0,0.00019999,2]
[357087889,1743706237831,-333.82413229,0.00019999,2]
[357087890,1743706237842,-169297.86937334,0.0002,2]
[357087891,1743706237980,-2753.86161001,0.0002,2]
[357087919,1743706240146,-901.4202829,0.0002,2]
[357087920,1743706240204,-338.4398622,0.0002,2]
[357087921,1743706240262,-233353.45510995,0.0002,2]
[357087922,1743706240318,-51395.78023846,0.0002,2]
[357088023,1743706242860,-275.30980187,0.0002,2]
[357088024,1743706242918,-1919.97946459,0.0002,2]
[357088025,1743706243084,-267077.48079264,0.0002,2]
[357088093,1743706243906,-9845.84565711,0.0002,2]
[357088145,1743706246052,-6012.32781061,0.0002,2]
[357088146,1743706246065,-921.71477007,0.0002,2]
[357088147,1743706246077,-512.0319719,0.0002,2]
[357088148,1743706246108,-6335.2875881,0.0002,2]
[357088187,1743706452448,-229.87709353,0.00019399,2]
[357088188,1743706486943,-175.14,0.00016963,2]
[357088189,1743706486969,-54.73709353,0.00019286,2]
[357088191,1743706497516,-155.76,0.00019286,2]
[357088248,1743706997269,227.97701645,0.00035017,120]
[357088251,1743707000905,178.43721206,0.00035017,120]
[357088258,1743707113280,168.06,0.00013699,2]
[357088439,1743707132772,-167.8371,0.00019189,2]
[357089130,1743707212788,-391.92439095,0.00019141,2]
[357089133,1743707218092,-158.38440415,0.00019141,2]
[357089136,1743707231103,-1120.4767229,0.00019141,2]
[357089137,1743707231126,-250.0,0.00019237,2]
[357089138,1743707231149,-675.45290647,0.00019286,2]
[357089139,1743707231170,-455.6955499,0.00019286,2]
[357089140,1743707231191,-381.7453093,0.00019399,2]
[357089141,1743707231214,-268.25993243,0.000197,2]
[357089142,1743707231237,-2300.1155,0.000198,2]
[357089143,1743707231260,-500.0,0.00019836,2]
[357089144,1743707231282,-450.0,0.00019899,2]
[357089145,1743707231305,-300.0,0.00019899,2]
[357089146,1743707231329,-154.92007785,0.000199,2]
[357089147,1743707231355,-3482.64102565,0.000199,2]
[357089150,1743707240132,-941.40214603,0.000199,2]
[357089152,1743707262593,-286.308982,0.00019399,2]
[357089157,1743707309079,-214.7317365,0.00019399,2]
[357089159,1743707353898,-161.0488024,0.00019399,2]
[357089160,1743707432060,-161.0488024,0.00019399,2]
[357089161,1743707432070,-239.81807041,0.000198,2]
[357089162,1743707432080,-239.81807041,0.0001985,2]
[357089163,1743707432090,-792.50782832,0.000199,2]
[357089164,1743707432099,-173.40552911,0.000199,2]
[357089165,1743707432108,-232.72938274,0.000199,2]
[357089166,1743707432120,-714.21207113,0.000199,2]
[357089167,1743707432131,-183.28214613,0.000199,2]
[357089168,1743707432141,-699.1738658,0.000199,2]
[357089169,1743707432152,-1096.3059,0.000199,2]
[357089170,1743707432161,-2912.86116462,0.000199,2]
[357089171,1743707432176,-447.46047696,0.000199,2]
[357089172,1743707432188,-1102.38115842,0.000199,2]
[357089173,1743707432199,-697.87387967,0.000199,2]
[357089174,1743707432208,-318.38432458,0.000199,2]
[357089175,1743707432218,-239.81807041,0.000199,2]
[357089176,1743707432230,-163.65090034,0.000199,2]
[357089177,1743707432240,-3383.74094328,0.000199,2]
[357089178,1743707432250,-591.36556772,0.000199,2]
[357089179,1743707432260,-591.36556772,0.000199,2]
[357089180,1743707432270,-250.0,0.00019936,2]
[357089181,1743707432280,-500.0,0.00019973,2]
[357089182,1743707432290,-286.19023269,0.00019999,2]
[357089183,1743707432300,-210.085,0.0002,2]
[357089184,1743707432311,-539.0,0.0002,2]
[357089185,1743707432323,-22320.93688687,0.0002,2]
[357089186,1743707432335,-414.36529306,0.0002,2]
[357089187,1743707432347,-1362.03657173,0.0002,2]
[357089188,1743707432378,-289.89542101,0.0002,2]
[357089190,1743707432391,-407.0,0.0002,2]
[357089370,1743707437890,-5108.28043076,0.0002,2]
[357089371,1743707438050,-5711.91562,0.0002,2]
[357089372,1743707438063,-822.49017547,0.0002,2]
[357089373,1743707438075,-9390.89872029,0.0002,2]
[357089374,1743707438106,-1942.4,0.0002,2]
[357089375,1743707438162,-468.40396298,0.0002,2]
[357089376,1743707438217,-6367.60537862,0.0002,2]
[357089377,1743707438231,-16696.9305309,0.0002,2]
[357089512,1743707442200,-2590.3204631,0.0002,2]
[357089513,1743707442211,-2887.51905473,0.0002,2]
[357089514,1743707442223,-526.83669798,0.0002,2]
[357089515,1743707442240,-8605.69970125,0.0002,2]
[357089516,1743707442252,-233353.45510995,0.0002,2]
[357089536,1743707443955,-1962.15981437,0.0002,2]
[357089537,1743707443966,-4540.0,0.0002,2]
[357089539,1743707446067,-391.924391,0.000199,2]
[357089540,1743707446076,-103074.054609,0.0002,2]
[357089541,1743707446165,-5541.49536745,0.0002,2]
[357089542,1743707446329,-517.44999798,0.0002,2]
[357089543,1743707446468,-210711.38024945,0.0002,2]
[357089544,1743707446479,-81413.01552613,0.0002,2]
[357089545,1743707446490,-107496.69893381,0.0002,2]
[357089552,1743707581637,-154.33291772,0.00019399,2]
[357089553,1743707624398,-154.33291772,0.00019399,2]
[357089554,1743707643293,-13.43176938,0.00019399,2]
[357089555,1743707643324,-140.90114834,0.00019449,2]
[357089556,1743707673457,-163.29613777,0.00019449,2]
[357089557,1743707701939,-156.24333332,0.00019449,2]
[357089558,1743707710882,-159.79533431,0.00019449,2]
[357089559,1743707919029,-174.11,0.00016741,2]
[357089560,1743707997459,-163.0,0.00019449,2]
[357089561,1743708046271,-299.99,0.00020014,7]
[357089562,1743708046295,-150.0,0.00021312,7]
[357089563,1743708046316,-151.422638,0.000225,7]
[357089564,1743708046337,-151.0,0.000225,7]
[357089565,1743708046359,-151.0,0.000225,7]
[357089566,1743708046384,-151.0,0.000225,7]
[357089567,1743708046406,-151.0,0.000225,7]
[357089568,1743708046427,-151.0,0.000225,7]
[357089569,1743708046450,-151.0,0.000225,7]
[357089570,1743708046474,-156.216439,0.000225,7]
[357089571,1743708046498,-151.0,0.000225,7]
[357089572,1743708046528,-151.0,0.000225,7]
[357089573,1743708046552,-151.0,0.000239,7]
[357089574,1743708046574,-151.0,0.000239,7]
[357089575,1743708046599,-151.0,0.000239,7]
[357089576,1743708046622,-153.020701,0.000239,7]
[357089577,1743708046645,-151.0,0.000239,7]
[357089578,1743708046670,-152.711126,0.000239,7]
[357089579,1743708046693,-151.0,0.000239,7]
[357089580,1743708046716,-151.0,0.000239,7]
[357089581,1743708046740,-153.390316,0.000239,7]
[357089582,1743708047002,-151.0,0.000239,7]
[357089583,1743708047025,-370.406367,0.000239,7]
[357089584,1743708047048,-370.406367,0.000239,7]
[357089585,1743708047070,-151.0,0.000239,7]
[357089586,1743708047092,-151.0,0.000239,7]
[357089587,1743708047118,-151.0,0.000239,7]
[357089588,1743708047141,-151.0,0.000239,7]
[357089589,1743708047163,-151.0,0.000239,7]
[357089590,1743708047185,-151.0,0.000239,7]
[357089591,1743708047208,-151.0,0.000239,7]
[357089592,1743708047232,-151.0,0.000239,7]
[357089593,1743708047257,-151.0,0.000239,7]
[357089594,1743708047281,-156.670565,0.000239,7]
[357089595,1743708047305,-417.838458,0.000239,7]
[357089596,1743708047328,-151.0,0.000239,7]
[357089597,1743708047352,-417.838458,0.000239,7]
[357089598,1743708047376,-151.0,0.000239,7]
[357089599,1743708047399,-170.955475,0.000239,7]
[357089600,1743708047425,-151.0,0.000239,7]
[357089601,1743708047450,-151.0,0.000239,7]
[357089602,1743708047476,-151.0,0.000239,7]
[357089603,1743708047508,-151.0,0.000239,7]
[357089604,1743708047533,-151.0,0.000239,7]
[357089605,1743708047561,-151.0,0.000239,7]
[357089606,1743708047586,-151.0,0.000239,7]
[357089607,1743708047609,-151.876257,0.000239,7]
[357089608,1743708047633,-151.0,0.000239,7]
[357089609,1743708047656,-151.0,0.000239,7]
[357089610,1743708047681,-151.0,0.000239,7]
[357089611,1743708047705,-151.0,0.000239,7]
[357089612,1743708047731,-151.0,0.000239,7]
[357089613,1743708047756,-3951.69504,0.000239,7]
[357089614,1743708047785,-3951.69504,0.000239,7]
[357089615,1743708047809,-151.0,0.000239,7]
[357089616,1743708047832,-151.0,0.000239,7]
[357089617,1743708047856,-151.0,0.000239,7]
[357089618,1743708047878,-151.0,0.000239,7]
[357089619,1743708047902,-151.0,0.000239,7]
[357089620,1743708047926,-292.13785,0.000239,7]
[357089621,1743708047949,-151.0,0.000239,7]
[357089622,1743708047973,-152.83507,0.000239,7]
[357089623,1743708048011,-151.0,0.000239,7]
[357089624,1743708048039,-151.0,0.000239,7]
[357089625,1743708048064,-151.0,0.000239,7]
[357089626,1743708048090,-151.0,0.000239,7]
[357089627,1743708048116,-151.0,0.000239,7]
[357089628,1743708048141,-151.0,0.000248,7]
[357089629,1743708048166,-155.93956,0.000248,7]
[357089630,1743708048192,-151.0,0.000248,7]
[357089631,1743708048217,-151.0,0.000248,7]
[357089632,1743708048241,-151.0,0.000248,7]
[357089633,1743708048268,-152.536637,0.000248,7]
[357089634,1743708048293,-235.195138,0.000248,7]
[357089635,1743708048319,-235.195138,0.000248,7]
[357089636,1743708048343,-151.0,0.000248,7]
[357089637,1743708048367,-619.706369,0.000248,7]
[357089638,1743708048392,-619.706369,0.000248,7]
[357089639,1743708048418,-151.0,0.000248,7]
[357089640,1743708048442,-151.0,0.000248,7]
[357089641,1743708048467,-370.406367,0.000248,7]
[357089642,1743708048493,-370.406367,0.000248,7]
[357089643,1743708048523,-151.0,0.000248,7]
[357089644,1743708048548,-151.0,0.000248,7]
[357089645,1743708048572,-151.0,0.000248,7]
[357089646,1743708048598,-151.0,0.000248,7]
[357089647,1743708048626,-208.663214,0.000248,7]
[357089648,1743708048651,-153.113945,0.000248,7]
[357089649,1743708048676,-151.0,0.000248,7]
[357089650,1743708048701,-417.838458,0.000248,7]
[357089651,1743708048727,-297.1421,0.000248,7]
[357089652,1743708048753,-417.838458,0.000248,7]
[357089653,1743708048779,-151.0,0.000248,7]
[357089654,1743708048805,-151.0,0.000248,7]
[357089655,1743708048835,-206.032648,0.000248,7]
[357089656,1743708048861,-151.0,0.000248,7]
[357089657,1743708048886,-192.260568,0.000248,7]
[357089658,1743708048910,-151.0,0.000248,7]
[357089659,1743708048934,-151.0,0.000248,7]
[357089660,1743708048958,-151.0,0.000248,7]
[357089661,1743708048982,-151.0,0.000248,7]
[357089662,1743708049008,-151.0,0.000248,7]
[357089663,1743708049033,-151.0,0.000248,7]
[357089664,1743708049058,-151.0,0.000248,7]
[357089665,1743708049087,-151.0,0.000248,7]
[357089666,1743708049113,-3951.69504,0.000248,7]
[357089667,1743708049139,-3951.69504,0.000248,7]
[357089668,1743708049163,-151.0,0.000248,7]
[357089669,1743708049189,-151.0,0.000248,7]
[357089670,1743708049214,-196.660901,0.000248,7]
[357089671,1743708049238,-151.0,0.000248,7]
[357089672,1743708049265,-151.0,0.000248,7]
[357089673,1743708049289,-151.0,0.000248,7]
[357089674,1743708049314,-151.0,0.000249,7]
[357089675,1743708049338,-253.001221,0.000249,7]
[357089676,1743708049363,-158.630016,0.000249,7]
[357089677,1743708049388,-151.0,0.000249,7]
[357089678,1743708049416,-151.0,0.000249,7]
[357089679,1743708049441,-151.0,0.000249,7]
[357089680,1743708049465,-151.0,0.000249,7]
[357089681,1743708049490,-151.0,0.000249,7]
[357089682,1743708049520,-151.0,0.000249,7]
[357089683,1743708049557,-152.958511,0.000249,7]
[357089684,1743708049591,-153.81791,0.000249,7]
[357089685,1743708049624,-151.0,0.000249,7]
[357089686,1743708049655,-151.0,0.000249,7]
[357089687,1743708049690,-160.067813,0.000249,7]
[357089688,1743708049723,-151.0,0.000249,7]
[357089689,1743708049759,-151.0,0.000249,7]
[357089690,1743708049791,-151.0,0.000249,7]
[357089691,1743708049825,-151.0,0.000249,7]
[357089692,1743708049853,-151.0,0.000249,7]
[357089693,1743708049884,-235.195138,0.000249,7]
[357089694,1743708049918,-235.195138,0.000249,7]
[357089695,1743708049947,-151.0,0.000249,7]
[357089696,1743708049977,-619.706369,0.000249,7]
[357089697,1743708050009,-619.706369,0.000249,7]
[357089698,1743708050040,-151.0,0.000249,7]
[357089699,1743708050067,-370.406367,0.000249,7]
[357089700,1743708050094,-370.406367,0.000249,7]
[357089701,1743708050124,-151.0,0.000249,7]
[357089702,1743708050153,-151.0,0.000249,7]
[357089703,1743708050181,-151.0,0.000249,7]
[357089704,1743708050210,-417.838458,0.000249,7]
[357089705,1743708050242,-417.838458,0.000249,7]
[357089706,1743708050283,-151.0,0.000249,7]
[357089707,1743708050314,-151.0,0.000249,7]
[357089708,1743708050344,-151.0,0.000249,7]
[357089709,1743708050371,-151.0,0.000249,7]
[357089710,1743708050399,-151.0,0.000249,7]
[357089711,1743708050428,-151.0,0.000249,7]
[357089712,1743708050461,-151.0,0.000249,7]
[357089713,1743708050487,-151.0,0.000249,7]
[357089714,1743708050520,-289.351307,0.000249,7]
[357089715,1743708050549,-151.0,0.000249,7]
[357089716,1743708050581,-3951.69504,0.000249,7]
[357089717,1743708050609,-3951.69504,0.000249,7]
[357089718,1743708050636,-151.0,0.000249,7]
[357089719,1743708050662,-292.251501,0.000249,7]
[357089720,1743708050690,-151.0,0.000249,7]
[357089721,1743708050717,-183.0,0.000253,10]
[357089722,1743708050749,-151.0,0.00028371,7]
[357089723,1743708050779,-211.442397,0.00029979,7]
[357089724,1743708050813,-151.0,0.00029979,7]
[357089725,1743708050841,-151.0,0.00029979,7]
[357089726,1743708050868,-164.663059,0.00029979,7]
[357089727,1743708050895,-198.528491,0.00029979,7]
[357089728,1743708050923,-151.0,0.0003,7]
[357089729,1743708050953,-151.0,0.0003,7]
[357089730,1743708050979,-151.0,0.0003,7]
[357089731,1743708051007,-156.393312,0.0003,7]
[357089732,1743708051034,-151.0,0.0003,7]
[357089733,1743708051066,-151.0,0.0003,7]
[357089734,1743708051091,-157.87743,0.0003,7]
[357089735,1743708051118,-235.195138,0.0003,7]
[357089736,1743708051144,-235.195138,0.0003,7]
[357089737,1743708051172,-151.0,0.0003,7]
[357089738,1743708051198,-619.706369,0.0003,7]
[357089739,1743708051225,-619.706369,0.0003,7]
[357089740,1743708051253,-273.931552,0.0003,7]
[357089741,1743708051281,-370.406367,0.0003,7]
[357089742,1743708051306,-370.406367,0.0003,7]
[357089743,1743708051334,-151.0,0.0003,7]
[357089744,1743708051360,-154.750442,0.0003,7]
[357089745,1743708051386,-417.838458,0.0003,7]
[357089746,1743708051412,-417.838458,0.0003,7]
[357089747,1743708051440,-151.0,0.0003,7]
[357089748,1743708051467,-151.0,0.0003,7]
[357089749,1743708051494,-151.0,0.0003,7]
[357089750,1743708051525,-151.0,0.0003,7]
[357089751,1743708051552,-151.0,0.0003,7]
[357089752,1743708051578,-151.0,0.0003,7]
[357089753,1743708051606,-151.0,0.0003,7]
[357089754,1743708051633,-151.0,0.0003,7]
[357089755,1743708051659,-151.0,0.0003,7]
[357089756,1743708051687,-3951.69504,0.0003,7]
[357089757,1743708051714,-3951.69504,0.0003,7]
[357089758,1743708051741,-151.0,0.0003,7]
[357089759,1743708051770,-232.912305,0.0003,7]
[357089760,1743708051927,151.0,0.000239,7]
[357089761,1743708131208,168.06,0.00013699,2]
[357089762,1743708321575,554.91521212,9e-05,2]
[357089763,1743708328375,-137.55404626,0.00019449,2]
[357089764,1743708328400,-29.29770603,0.000196,2]
[357089765,1743708329727,3855.35175125,0.00011,2]
[357089766,1743708338600,6189.39514686,8e-05,2]
[357089767,1743708357706,1405.47448602,6.94e-05,2]
[357089768,1743708358325,-165.0992989,0.00019399,2]
[357089769,1743708358350,-42.95905585,0.000196,2]
[357089770,1743708360183,-165.0992989,0.000196,2]
[357089771,1743708365437,12547.69743546,8e-05,2]
[357089772,1743708369389,860.8119214,8e-05,2]
[357089775,1743708450921,-165.099299,0.00019399,2]
[357089776,1743708450946,-80.608101,0.000196,2]
[357089777,1743708454668,-165.099299,0.00019527,2]
[357089779,1743708466919,-164.32991852,0.00019353,2]
[357089780,1743708472146,-738.29920905,0.00019302,2]
[357089781,1743708485193,38954.21562393,0.00015,2]
[357089782,1743708485222,202.0,0.00015,2]
[357089783,1743708485846,-214.13,0.00015,2]
[357089784,1743708513989,-276.77713981,0.00014925,2]
[357089787,1743708545484,-152.735,0.00014925,2]
[357089793,1743708563712,-152.735,0.00014925,2]
[357089797,1743708583659,-152.735,0.00014899,2]
[357089798,1743708590671,156.05207,0.00014824,2]
[357089799,1743708603203,-150.0,0.00014899,2]
[357089803,1743708607899,-202.84017549,0.00014899,2]
[357089810,1743708632260,-28.59273796,0.00014899,2]
[357089811,1743708632271,-500.0,0.00014999,2]
[357089812,1743708632280,-208.05835475,0.00014999,2]
[357089813,1743708632290,-377.2182405,0.00014999,2]
[357089814,1743708632299,-218.65066679,0.00014999,2]
[357089815,1743708632367,-281.34933321,0.00014999,2]
[357089816,1743708632377,-500.0,0.00014999,2]
[357089817,1743708632386,-500.0,0.00014999,2]
[357089818,1743708632395,-519.76666814,0.00014999,2]
[357089819,1743708632404,-150.0,0.00014999,2]
[357089820,1743708632418,-185.24113781,0.00015,2]
[357089821,1743708632479,-486.90482947,0.00015,2]
[357089822,1743708632494,-25614.71403839,0.00015,2]
[357089831,1743708633091,-234.11836645,0.00015,2]
[357089832,1743708638012,-1661.6399997,0.00015,2]
[357089833,1743708638139,-3774.94179018,0.00015,2]
[357089834,1743708638281,-824.0,0.00015,2]
[357089882,1743708638821,-159.83696741,0.00015,2]
[357089979,1743708640622,-387.00469009,0.00015,2]
[357089981,1743708640635,-250.376,0.00015,2]
[357089985,1743708640678,-233353.45510995,0.00015,2]
[357089992,1743708643035,-297.17206569,0.00015,2]
[357089996,1743708643168,-6386.4,0.00015,2]
[357090002,1743708644538,-2983.71878655,0.00015,2]
[357090011,1743708685930,-173.19014926,0.00015,2]
[357090012,1743708694800,-297.17206569,0.00015,2]
[357090013,1743708700883,-212.15675656,0.00015,2]
[357090014,1743708723440,-175.14,0.00014999,2]
[357090015,1743708782563,-233.42040936,0.00014999,2]
[357090018,1743708962085,-158.57130424,0.00014999,2]
[357090019,1743708968979,-141.42869576,0.00014999,2]
[357090020,1743708969003,-9.58123114,0.00014999,2]
[357090021,1743708974038,-140.41876886,0.00014999,2]
[357090022,1743708974061,-59.58123114,0.00015,2]
[357090023,1743708978801,-181.09745514,0.00015,2]
[357090024,1743708991172,-151.0099269,0.00015,2]
[357090025,1743709001894,175.14,0.00014039,2]
[357090026,1743709022014,-201.88251824,0.00014999,2]
[357090027,1743709110530,879.552,0.000147,2]
[357090028,1743709176657,379.5,0.00035026,30]
[357090029,1743709209081,181.02,0.00026069,120]
[357090030,1743709362282,168.06,0.00013699,2]
[357090031,1743709534127,-158.59649864,0.00014887,2]
[357090032,1743709563465,-193.2446,0.00014887,2]
[357090033,1743709569185,-98.15890136,0.00014887,2]
[357090034,1743709569208,-58.59649864,0.00014962,2]
[357090060,1743709832535,-104.69963913,0.00014962,2]
[357090061,1743709832545,-250.0,0.00014969,2]
[357090062,1743709832555,-325.68644592,0.0001499,2]
[357090063,1743709832564,-173.48784373,0.00014999,2]
[357090064,1743709832573,-150.0,0.00014999,2]
[357090065,1743709832582,-300.0,0.00014999,2]
[357090066,1743709832592,-198.76240595,0.00015,2]
[357090067,1743709832697,-731955.50813102,0.00015,2]
[357090068,1743709832707,-1918.1007758,0.00015269,2]
[357090069,1743709832717,-1408.9891126,0.00015369,2]
[357090070,1743709832726,-584.73885991,0.00015569,2]
[357090071,1743709832736,-374.48700192,0.00015685,2]
[357090072,1743709832745,-500.0,0.00015685,2]
[357090073,1743709832757,-279.55687044,0.00015813,2]
[357090074,1743709832766,-500.0,0.00015813,2]
[357090075,1743709832776,-502.49533835,0.00015813,2]
[357090076,1743709832785,-162.14699852,0.0001585,2]
[357090077,1743709832794,-160.08132431,0.00015867,2]
[357090078,1743709832803,-151.94326394,0.00015867,2]
[357090079,1743709832812,-500.0,0.00015867,2]
[357090080,1743709832821,-1408.9891126,0.00015872,2]
[357090081,1743709832831,-584.73885983,0.0001605,2]
[357090082,1743709832839,-150.99,0.0001605,2]
[357090083,1743709832848,-2799.11,0.0001605,2]
[357090084,1743709832858,-905.99,0.00016056,2]
[357090085,1743709832867,-255.0,0.00016124,2]
[357090086,1743709832876,-250.0,0.00016375,2]
[357090087,1743709832886,-1408.9891126,0.00016376,2]
[357090088,1743709832896,-420.0,0.00016416,2]
[357090089,1743709832905,-250.0,0.00016458,2]
[357090090,1743709832914,-584.73885983,0.00016531,2]
[357090091,1743709832924,-2414.43,0.00016878,2]
[357090092,1743709832933,-635.89,0.00016878,2]
[357090093,1743709832942,-300.0,0.00016878,2]
[357090094,1743709832952,-1408.9891126,0.00016879,2]
[357090095,1743709832961,-480.076,0.000169,2]
[357090096,1743709832971,-480.076,0.000169,2]
[357090097,1743709832980,-480.076,0.000169,2]
[357090098,1743709832990,-480.076,0.000169,2]
[357090099,1743709832999,-480.076,0.000169,2]
[357090100,1743709833011,-480.076,0.000169,2]
[357090102,1743709833021,-480.076,0.000169,2]
[357090104,1743709833030,-480.076,0.000169,2]
[357090106,1743709833040,-480.076,0.000169,2]
[357090108,1743709833050,-480.076,0.000169,2]
[357090110,1743709833059,-200.0,0.000169,6]
[357090112,1743709833070,-4123.36,0.00016923,2]
[357090114,1743709833085,-4749.38,0.00016986,2]
[357090116,1743709833094,-1195.45,0.00016999,2]
[357090118,1743709833104,-584.73885983,0.00017013,2]
[357090119,1743709833115,-153.95,0.0001702,2]
[357090120,1743709833125,-153.95,0.00017032,2]
[357090121,1743709833134,-153.95,0.00017044,2]
[357090122,1743709833144,-153.95,0.00017056,2]
[357090123,1743709833154,-153.95,0.00017068,2]
[357090124,1743709833163,-153.95,0.0001708,2]
[357090125,1743709833174,-153.95,0.00017093,2]